Workbook

Sheet EINGABE
B2: Kunde | D2: sxces Communication AG | H2: Ansprechpartner | K2: Michael Pachan
B3: Straße + Hausnummer | D3: Wigandstr. 17 | H3: Kontaktnummer | K3: 0561 40061-116
B4: PLZ + Ort | D4: 34131 | F4: Kassel | H4: E-Mail | K4: michael.pachan@sxces.com
B6: Anbieter | D6: Deutsche Telekom AG
B8: Rufnummer | D8: 0561 - 40061-0
B10: Position | D10: Anzahl | F10: Kosten in € | I10: Position | K10: Anzahl | M10: Kosten in €
B12: ISDN Basisanschluss | D12: 1 | F12: 74.9 | I12: Internetanschluss | K12: 1 | M12: 26.9 | O12: Anzahl Leitungen | Q12: =SUM(D12,D13)*2 -> 4
B13: ISDN Erweiterungsanschluss | D13: 1 | F13: 40.9 | I13: Bandbreite | M13: 2 Mbit/s
B14: Clip-no-screening | D14: 0 | F14: 0 | I14: Flatrate | K14: 1 | M14: 0
I15: Statische IP Adresse | K15: 1 | M15: 0
B17: Position | D17: Min. | F17: Kosten in €
B19: Verbindungen ins dt. Festnetz | F19: 0
B20: Verbindungen in dt. Mobilfunknetze | D20: 461 | F20: =46.98+8.2+5+6.12 -> 66.3
B21: Verbindungen nach Europa - Festnetz | F21: 0
B22: Verbindungen nach Europa - Mobil | F22: 8.05
B23: Verbindungen weltweit - Festnetz | F23: 0
B24: Verbindungen weltweit - Mobil | F24: 0
B25: Verbindungen zu Sonderrufnummern | F25: 0.67
B27: Weitere mtl. Kosten | F27: 1.32
B29: GESAMT netto | F29: =SUM(F12:F21,F27,M12:M15) -> 210.32

Sheet SIP Anbietervergleich
D2: HFO NGN Connect | E2: HFO NGN Business | F2: Vodafone AnlagenAs Plus | G2: Vodafone IP-AnlagenAs | H2: Vodafone IP-AnlagenAs DGRV | I2: peoplefone SIP-Trunk | J2: QSC extended connect | K2: QSC IPfonie extended | L2: Ecotel SIP-Trunk 2.0 | M2: STARFACE Connect | N2: Deutsche Telekom
A4: INTERN: Zeile bitte ausblenden (NICHT löschen) + Arbeitsmappe schützen | D4: RV2 | E4: RV2
A6: Variante Allnet-Flat | B6: Leitungen | D6: =EINGABE!Q12 -> 4 | E6: 6 | F6: =EINGABE!Q12 -> 4 | G6: =EINGABE!Q12 -> 4 | H6: =EINGABE!Q12 -> 4 | I6: =EINGABE!Q12 -> 4 | J6: =EINGABE!Q12 -> 4 | K6: nicht verfügbar | L6: =EINGABE!Q12 -> 4 | M6: nicht verfügbar | N6: =EINGABE!Q12 -> 4
B7: Grundgebühr | D7: =IF(D4="kein",VLOOKUP(D6,DATEN!J5:L10,2,FALSE),IF(D4="RV1",VLOOKUP(D6,DATEN!J16:L21,2,FALSE),VLOOKUP(D6,DATEN!J27:L32,2,FALSE))) -> 103.96 | E7: =IF(E4="kein",VLOOKUP(E6,DATEN!D5:F9,2,FALSE),IF(E4="RV1",VLOOKUP(E6,DATEN!D16:F20,2,FALSE),VLOOKUP(E6,DATEN!D27:F31,2,FALSE))) -> 199 | F7: =IF(DATEN!N40=TRUE,PRODUCT(F6,29.95)*0.8,PRODUCT(F6*29.95)) -> 119.8 | G7: =IF(DATEN!N41=TRUE,PRODUCT(G6,23.95)*0.8,PRODUCT(G6*23.95)) -> 95.8 | H7: =IF(DATEN!N42=TRUE,PRODUCT(H6,15.97),PRODUCT(H6,20.36)) -> 81.44 | I7: =I6*20 -> 80 | J7: =IF(J6=4,35.2,IF(J6=6,52.5,IF(J6=8,69.6,0))) -> 35.2 | K7: - | L7: =VLOOKUP(L6,DATEN!S5:T15,2,FALSE) -> 4.8 | M7: - | N7: =VLOOKUP(N6,DATEN!AB5:AC8,2,FALSE) -> 120.65
B8: + Preis ins dt. Festnetz (flat) | D8: inklusive | E8: inklusive | F8: inklusive | G8: inklusive | H8: inklusive | I8: inklusive | J8: inklusive | K8: - | L8: =VLOOKUP(L6,DATEN!S5:U15,3,FALSE) -> 13 | M8: - | N8: inklusive
B9: + Preis in alle dt. Mobilfunknetze (flat) | D9: inklusive | E9: inklusive | F9: inklusive | G9: inklusive | H9: inklusive | I9: inklusive | J9: =(J6*15) -> 60 | K9: - | L9: =VLOOKUP(L6,DATEN!S5:X15,6,FALSE) -> 63 | M9: - | N9: inklusive
B10: keine EU-Flat | D10: =EINGABE!F21 -> 0 | E10: =EINGABE!F21 -> 0 | F10: =IF(B10="keine EU-Flat",0,F6*2.95) -> 0 | G10: =IF(B10="keine EU-Flat",0,G6*2.95) -> 0 | H10: =IF(B10="keine EU-Flat",0,H6*2.95) -> 0 | I10: =IF(B10="EU-Flat Festnetz",I6*18,EINGABE!F21) -> 0 | J10: immer inklusive | K10: - | L10: =EINGABE!F21 -> 0 | M10: - | N10: =EINGABE!F21 -> 0
B11: Anschlussgebühr | D11: 0 | E11: =VLOOKUP(E6,DATEN!D5:F9,3,FALSE) -> 49 | F11: =VLOOKUP(F41,DATEN!P25:Q26,2,FALSE) -> 0 | G11: 0 | H11: 0 | I11: 0 | J11: 0 | K11: 0 | L11: =VLOOKUP(L6,DATEN!S5:Y15,7,FALSE) -> 10 | M11: - | N11: 0
B13: Datenleitung für Internetzugang | D13: DSLmaxx Business VDSL 100 | E13: DSLmaxx Business VDSL 100 | F13: Kein Internet | G13: SDSL 2 Mbit/s + QoS | H13: vorhanden | I13: - | J13: - | K13: - | L13: pure VDSL 50 | M13: - | N13: VDSL 50 Mbit
B14: Grundgebühr | D14: =VLOOKUP(D13,DATEN!A35:B36,2,FALSE) -> 38.99 | E14: =VLOOKUP(E13,DATEN!A35:B36,2,FALSE) -> 38.99 | F14: =VLOOKUP(F13,DATEN!M25:N28,2,FALSE) -> 0 | G14: =VLOOKUP(G13,DATEN!M30:N37,2,FALSE) -> 103.95 | H14: =VLOOKUP(H13,DATEN!M30:N37,2,FALSE) -> 0 | I14: - | J14: - | K14: - | L14: =VLOOKUP(L13,DATEN!S25:T27,2,FALSE) -> 39.9 | M14: - | N14: =VLOOKUP(N13,DATEN!Z25:AA27,2,FALSE) -> 4.95
B16: Gesamtkosten mtl. Allnet Variante | D16: =SUM(D7,D14) -> 142.95 | E16: =SUM(E7,E14) -> 237.99 | F16: =SUM(F7,F10,F14) -> 119.8 | G16: =SUM(G7,G10,G14) -> 199.75 | H16: =SUM(H7,H10,H14) -> 81.44 | I16: =SUM(I7,I10) -> 80 | J16: =SUM(J7,J9) -> 95.2 | K16: - | L16: =SUM(L7,L8,L9,L14) -> 120.7 | M16: - | N16: =SUM(N7,N14) -> 125.6
B17: Ihre aktuellen Kosten: | D17: =EINGABE!F29 -> 210.32 | E17: =EINGABE!F29 -> 210.32 | F17: =EINGABE!F29 -> 210.32 | G17: =EINGABE!F29 -> 210.32 | H17: =EINGABE!F29 -> 210.32 | I17: =EINGABE!F29 -> 210.32 | J17: =EINGABE!F29 -> 210.32 | K17: - | L17: =EINGABE!F29 -> 210.32 | M17: - | N17: =EINGABE!F29 -> 210.32
B18: Einsparung pro Jahr (netto): | D18: =(D17-D16)*12 -> 808.44 | E18: -332.04 | F18: 1086.24 | G18: =(G17-G16)*12 -> 126.84 | H18: 1546.56 | I18: 1563.84 | J18: =(J17-J16)*12 -> 1381.44 | K18: - | L18: =(L17-L16)*12 -> 1075.44 | M18: - | N18: =(N17-N16)*12 -> 1016.64
A20: Variante Festnetz-Flat | B20: Leitungen | D20: =EINGABE!Q12 -> 4 | E20: 6 | F20: =EINGABE!Q12 -> 4 | G20: =EINGABE!Q12 -> 4 | H20: =EINGABE!Q12 -> 4 | I20: =EINGABE!Q12 -> 4 | J20: =EINGABE!Q12 -> 4 | K20: 10 | L20: =EINGABE!Q12 -> 4 | M20: 30 | N20: =EINGABE!Q12 -> 4
B21: Grundgebühr | D21: =IF(D4="kein",VLOOKUP(D20,DATEN!G5:I10,2,FALSE),IF(D4="RV1",VLOOKUP(D20,DATEN!G16:I21,2,FALSE),VLOOKUP(D20,DATEN!G27:I32,2,FALSE))) -> 25.96 | E21: =IF(E4="kein",VLOOKUP(E20,DATEN!A5:C9,2,FALSE),IF(E4="RV1",VLOOKUP(E20,DATEN!A16:C20,2,FALSE),VLOOKUP(E20,DATEN!A27:C31,2,FALSE))) -> 103 | F21: =IF(DATEN!N40=TRUE,PRODUCT(F20,14.95)*0.8,PRODUCT(F20*14.95)) -> 59.8 | G21: =IF(DATEN!N41=TRUE,PRODUCT(G20,9.95)*0.8,PRODUCT(G20*9.95)) -> 39.8 | H21: =IF(DATEN!N42=TRUE,PRODUCT(H20,6.47),PRODUCT(H20,8.46)) -> 33.84 | I21: 0 | J21: =IF(J20=4,35.28,IF(J20=6,52.5,IF(J20=8,69.44,0))) -> 35.28 | K21: =IF(K20=10,PRODUCT(K20,1.04),IF(K20=20,PRODUCT(K20,1.02),IF(K20=30,PRODUCT(K20,0.99),0))) -> 10.4 | L21: =PRODUCT(L20,1.2) -> 4.8 | M21: 0 | N21: =VLOOKUP(N6,DATEN!Z5:AA8,2,FALSE) -> 80.85
B22: Preis ins dt. Festnetz | D22: inklusive | E22: inklusive | F22: inklusive | G22: inklusive | H22: inklusive | I22: 0.01 | J22: inklusive | K22: 0.014 | L22: =IF(L20<=10,PRODUCT(L20,3.75),IF(L20<=20,PRODUCT(L20,3),IF(L20>20,PRODUCT(L20,2.75),0))) -> 15 | M22: 0.09 | N22: inklusive
B23: Minutenverbrauch ins dt. Festnetz | D23: - | E23: - | F23: - | G23: - | H23: - | I23: 0 | J23: - | K23: =EINGABE!D19 -> 0 | L23: - | M23: - | N23: -
B24: Verbindungskosten ins Festnetz | D24: inklusive | E24: inklusive | F24: inklusive | G24: inklusive | H24: inklusive | I24: =PRODUCT(I22,I23) -> 0 | J24: inklusive | K24: =PRODUCT(K22,K23) -> 0 | L24: inklusive | M24: =PRODUCT(M22,M23) -> 0.09 | N24: =PRODUCT(N22,N23) -> 0
B25: Preis in dt. Mobilfunknetze / Minute | D25: 0.0699 | E25: 0.0699 | F25: 0.135 | G25: =0.135*0.6 -> 0.081 | H25: 0.08775 | I25: 0.1 | J25: 0.1099 | K25: 0.11 | L25: 0.0835 | M25: 0.99 | N25: 0.138
B26: Minutenverbrauch in dt. Mobilfunknetz | D26: =EINGABE!D20 -> 461 | E26: =EINGABE!D20 -> 461 | F26: =EINGABE!D20 -> 461 | G26: =EINGABE!D20 -> 461 | H26: =EINGABE!D20 -> 461 | I26: =EINGABE!D20 -> 461 | J26: =EINGABE!D20 -> 461 | K26: =EINGABE!D20 -> 461 | L26: =EINGABE!D20 -> 461 | M26: =EINGABE!D20 -> 461 | N26: =EINGABE!D20 -> 461
B27: Verbindungskosten in Mobilfunknetze | D27: =PRODUCT(D25,D26) -> 32.2239 | E27: =PRODUCT(E25,E26) -> 32.2239 | F27: =PRODUCT(F25,F26) -> 62.235 | G27: 37.341 | H27: =PRODUCT(H25,H26) -> 40.45275 | I27: 46.1 | J27: =PRODUCT(J25,J26) -> 50.6639 | K27: =PRODUCT(K25,K26) -> 50.71 | L27: =PRODUCT(L25,L26) -> 38.4935 | M27: =PRODUCT(M25,M26) -> 456.39 | N27: 63.618
B28: keine EU-Flat | D28: =EINGABE!F21 -> 0 | E28: =EINGABE!F21 -> 0 | F28: =IF(B28="keine EU-Flat",0,F20*2.95) -> 0 | G28: =IF(B28="keine EU-Flat",0,G20*2.95) -> 0 | H28: =IF(B28="keine EU-Flat",0,H20*2.95) -> 0 | I28: =IF(B28="EU-Flat Festnetz",I20*18,EINGABE!F21) -> 0 | J28: - | K28: - | L28: =EINGABE!F21 -> 0 | M28: - | N28: =EINGABE!F21 -> 0
B29: Anschlussgebühr | D29: 0 | E29: =VLOOKUP(E20,DATEN!A5:C9,3,FALSE) -> 49 | F29: =VLOOKUP(F41,DATEN!P25:Q26,2,FALSE) -> 0 | G29: =VLOOKUP(G41,DATEN!P25:Q26,2,FALSE) -> 0 | H29: =VLOOKUP(H41,DATEN!P25:Q26,2,FALSE) -> 0 | I29: 0 | J29: 0 | K29: 0 | L29: 0 | M29: 0 | N29: 0
B31: Datenleitung für Internetzugang | D31: DSLmaxx Business VDSL 100 | E31: DSLmaxx Business VDSL 100 | F31: Kein Internet | G31: SDSL 2 Mbit/s + QoS | H31: SDSL 2 Mbit/s + QoS | I31: - | J31: - | K31: - | L31: pure VDSL 50 | M31: - | N31: VDSL 50 Mbit
B32: Grundgebühr | D32: =VLOOKUP(D31,DATEN!A35:B36,2,FALSE) -> 38.99 | E32: =VLOOKUP(E31,DATEN!A35:B36,2,FALSE) -> 38.99 | F32: =VLOOKUP(F31,DATEN!M25:N28,2,FALSE) -> 0 | G32: =VLOOKUP(G31,DATEN!M30:N37,2,FALSE) -> 103.95 | H32: =VLOOKUP(H31,DATEN!M30:N37,2,FALSE) -> 103.95 | I32: - | J32: - | K32: - | L32: =VLOOKUP(L31,DATEN!S25:T27,2,FALSE) -> 39.9 | M32: - | N32: =VLOOKUP(N31,DATEN!Z25:AA27,2,FALSE) -> 4.95
B34: Gesamtkosten mtl. Festnetz Variante | D34: =SUM(D21,D27,D32) -> 97.1739 | E34: =SUM(E21,E27,E32) -> 174.2139 | F34: =SUM(F21,F27,F32) -> 122.035 | G34: =SUM(G21,G27,G28,G32) -> 181.091 | H34: =SUM(H21,H27,H28,H32) -> 178.24275 | I34: =SUM(I21,I24,I27,I28) -> 46.1 | J34: =SUM(J21,J27) -> 85.9439 | K34: =SUM(K21,K24,K27) -> 61.11 | L34: =SUM(L21,L22,L32) -> 59.7 | M34: =SUM(M21,M24,M27) -> 456.48 | N34: =SUM(N21,N27) -> 144.468
B35: Ihre aktuellen Kosten: | D35: =EINGABE!F29 -> 210.32 | E35: =EINGABE!F29 -> 210.32 | F35: =EINGABE!F29 -> 210.32 | G35: =EINGABE!F29 -> 210.32 | H35: =EINGABE!F29 -> 210.32 | I35: =EINGABE!F29 -> 210.32 | J35: =EINGABE!F29 -> 210.32 | K35: =EINGABE!F29 -> 210.32 | L35: =EINGABE!F29 -> 210.32 | M35: =EINGABE!F29 -> 210.32 | N35: =EINGABE!F29 -> 210.32
B36: Einsparung pro Jahr (netto): | D36: =(D35-D34)*12 -> 1357.7532 | E36: =(E35-E34)*12 -> 433.2732 | F36: =(F35-F34)*12 -> 1059.42 | G36: =(G35-G34)*12 -> 350.748 | H36: 384.927 | I36: =(I35-I34)*12 -> 1970.64 | J36: =(J35-J34)*12 -> 1492.5132 | K36: =(K35-K34)*12 -> 1790.52 | L36: =(L35-L34)*12 -> 1807.44 | M36: =(M35-M34)*12 -> -2953.92 | N36: =(N35-N34)*12 -> 790.224
A38: Optionen | B38: Backuprouting je Rufnummer | D38: 1 | E38: inklusive | F38: nein | G38: nein | H38: nein | I38: nein | J38: nein | K38: nein | L38: nein | M38: nein | N38: nein
B39: Clip no screening | D39: 3 | E39: 3 | F39: inklusive | G39: inklusive | H39: inklusive | I39: inklusive | J39: - | K39: - | L39: - | M39: inklusive | N39: -
B40: dedizierte DSL Anbindung | D40: nein | E40: ja | F40: ja | G40: ja | H40: ja | I40: nein | J40: nein | K40: nein | L40: nein | M40: nein | N40: ja
B41: Mindestvertragslaufzeit | D41: 12 Monate | E41: 24 Monate | F41: 36 Monate | G41: 36 Monate | H41: 36 Monate | I41: 12 Monate | J41: 24 Monate | K41: 24 Monate | L41: 24 Monate | M41: 1 Monat | N41: 24 Monate

Sheet AUSGABE
A10: ANGEBOT für: | B10: =EINGABE!D2 -> sxces Communication AG
B12: Adresse | C12: =EINGABE!D3 -> Wigandstr. 17 | E12: Ansprechpartner | G12: =EINGABE!K2 -> Michael Pachan
B13: PLZ | C13: 34131 | E13: Kontaktnummer | G13: =EINGABE!K3 -> 0561 40061-116
B14: Ort | C14: =EINGABE!F4 -> Kassel | E14: E-Mail | G14: =EINGABE!K4 -> michael.pachan@sxces.com
C33: Aktueller Anbieter | E33: Festnetz - Flat | G33: Allnet - Flat
A35: Anbieter | C35: =EINGABE!D6 -> Deutsche Telekom AG | E35: HFO NGN Connect | G35: HFO NGN Connect
A37: Rufnummer | C37: =EINGABE!D8 -> 0561 - 40061-0 | E37: =EINGABE!D8 -> 0561 - 40061-0 | G37: =EINGABE!D8 -> 0561 - 40061-0
A39: Anzahl Leitungen | C39: =EINGABE!Q12 -> 4 | E39: =EINGABE!Q12 -> 4 | G39: =EINGABE!Q12 -> 4
A40: Grundgebühr | C40: =(EINGABE!F12+EINGABE!F13) -> 115.8 | E40: =HLOOKUP(E35,'SIP Anbietervergleich'!D2:N41,20,FALSE) -> 25.96 | G40: =HLOOKUP(G35,'SIP Anbietervergleich'!D2:N41,6,FALSE) -> 103.96
A41: Clip-no-screening | C41: =EINGABE!F14 -> 0 | E41: =IF(EINGABE!D14=1,HLOOKUP(E35,'SIP Anbietervergleich'!D2:N41,38,FALSE),0) -> 0 | G41: =IF(EINGABE!D14=1,HLOOKUP(E35,'SIP Anbietervergleich'!D2:N41,38,FALSE),0) -> 0
A43: Internetanschluss | C43: =EINGABE!M12 -> 26.9 | E43: =HLOOKUP(E35,'SIP Anbietervergleich'!D2:N32,31,FALSE) -> 38.99 | G43: =HLOOKUP(G35,'SIP Anbietervergleich'!D2:N32,13,FALSE) -> 38.99
A44: Bandbreite | C44: =EINGABE!M13 -> 2 Mbit/s | E44: =HLOOKUP(E35,'SIP Anbietervergleich'!D2:N32,30,FALSE) -> DSLmaxx Business VDSL 100 | G44: =HLOOKUP(G35,'SIP Anbietervergleich'!D2:N32,12,FALSE) -> DSLmaxx Business VDSL 100
A45: Flatrate | C45: inklusive | E45: inklusive | G45: inklusive
A46: Statische IP-Adresse | C46: =EINGABE!M15 -> 0 | E46: =EINGABE!M15 -> 0 | G46: =EINGABE!M15 -> 0
A48: Verbindungen ins dt. Festnetz | C48: =EINGABE!F19 -> 0 | E48: =HLOOKUP(E35,'SIP Anbietervergleich'!D2:N41,21,FALSE) -> inklusive | G48: =HLOOKUP(G35,'SIP Anbietervergleich'!D2:N41,7,FALSE) -> inklusive
A49: Verbindungen in dt. Mobilfunknetze | C49: =EINGABE!F20 -> 66.3 | E49: =HLOOKUP(E35,'SIP Anbietervergleich'!D2:N41,26,FALSE) -> 32.2239 | G49: =HLOOKUP(G35,'SIP Anbietervergleich'!D2:N41,8,FALSE) -> inklusive
A50: Verbindungen nach Europa - Festnetz | C50: =EINGABE!F21 -> 0 | E50: =EINGABE!F21 -> 0 | G50: =EINGABE!F21 -> 0
A51: Verbindungen nach Europa - Mobil | C51: =EINGABE!F22 -> 8.05 | E51: =EINGABE!F22 -> 8.05 | G51: =EINGABE!F22 -> 8.05
A52: Verbindungen weltweit - Festnetz | C52: =EINGABE!F23 -> 0 | E52: =EINGABE!F23 -> 0 | G52: =EINGABE!F23 -> 0
A53: Verbindungen weltweit - Mobil | C53: =EINGABE!F24 -> 0 | E53: =EINGABE!F24 -> 0 | G53: =EINGABE!F24 -> 0
A54: Verbindungen zu Sonderrufnummern | C54: =EINGABE!F25 -> 0.67 | E54: =C54 -> 0.67 | G54: =C54 -> 0.67
A56: Weitere mtl. Kosten | C56: =EINGABE!F27 -> 1.32 | E56: 0 | G56: 0
A58: GESAMT netto | C58: =EINGABE!F29 -> 210.32 | E58: =SUM(E40,E41,E43,E48:E54,E56) -> 105.8939 | G58: =SUM(G40,G41,G43,G48:G54,G56) -> 151.67
A60: Einsparung pro Jahr | E60: =(C58-E58)*12 -> 1253.1132 | G60: =(C58-G58)*12 -> 703.8

Sheet DATEN (hidden)
A1: HFO NGN Business Festnetz | D1: HFO NGN Business Allnet | G1: HFO NGN Connect Festnetz | J1: HFO NGN Connect Allnet | S1: Ecotel sipTrunk 2.1 | Z1: Telekom SIP Trunk Festnetz | AB1: Telekom SIP Trunk Allnet | AD1: Easybell
A3: Leitungen | B3: Preis | C3: Anschluss | D3: Leitungen | E3: Preis | F3: Anschluss | G3: Leitungen | H3: Preis | I3: Anschluss | J3: Leitungen | K3: Preis | L3: Anschluss | S3: Leitungen | T3: Preis | U3: Flat national | V3: +1 GSM Netz | W3: +2 GSM Netz | X3: Allnet-Flat | Y3: Anschluss | Z3: Leitungen | AA3: Preis | AD3: Leitungen | AE3: Preis
A5: 6 | B5: 89 | C5: 49 | D5: 6 | E5: 169 | F5: 49 | G5: 2 | H5: 9.98 | I5: 0 | J5: 2 | K5: 39.98 | L5: 0 | S5: 2 | T5: =PRODUCT(S5,1.2) -> 2.4 | U5: =PRODUCT(S5,3.25) -> 6.5 | V5: =PRODUCT(S5,8.25) -> 16.5 | W5: =PRODUCT(S5,13.25) -> 26.5 | X5: =PRODUCT(S5,15.75) -> 31.5 | Y5: =PRODUCT(S5,2.5) -> 5 | Z5: 2 | AA5: 54.95 | AB5: 2 | AC5: =AA5+(2*9.95) -> 74.85 | AD5: bis 2 Leitungen | AE5: 1.67
A6: 8 | B6: 109 | C6: 49 | D6: 8 | E6: 209 | F6: 49 | G6: 4 | H6: 19.96 | I6: 0 | J6: 4 | K6: 79.96 | L6: 0 | S6: 4 | T6: =PRODUCT(S6,1.2) -> 4.8 | U6: =PRODUCT(S6,3.25) -> 13 | V6: =PRODUCT(S6,8.25) -> 33 | W6: =PRODUCT(S6,13.25) -> 53 | X6: =PRODUCT(S6,15.75) -> 63 | Y6: 10 | Z6: 4 | AA6: =AA5+(2*12.95) -> 80.85 | AB6: 4 | AC6: =AA6+(4*9.95) -> 120.65 | AD6: bis 10 Leitungen | AE6: 4.19
A7: 25 | B7: 259 | C7: 99 | D7: 25 | E7: 559 | F7: 99 | G7: 6 | H7: 29.94 | I7: 0 | J7: 6 | K7: 119.94 | L7: 0 | S7: 6 | T7: 7.2 | U7: 19.5 | V7: 49.5 | W7: 79.5 | X7: =PRODUCT(S7,15.75) -> 94.5 | Y7: 15 | Z7: 6 | AA7: =AA6+(2*12.95) -> 106.75 | AB7: 6 | AC7: =AA7+(6*9.95) -> 166.45 | AD7: bis 30 Leitungen | AE7: 16.8
A8: 50 | B8: 479 | C8: 299 | D8: 50 | E8: 1079 | F8: 299 | G8: 8 | H8: 39.92 | I8: 0 | J8: 8 | K8: 159.92 | L8: 0 | S8: 8 | T8: 9.6 | U8: 26 | V8: 66 | W8: 106 | X8: =PRODUCT(S8,15.75) -> 126 | Y8: 20 | Z8: 8 | AA8: 132.65 | AB8: 8 | AC8: =AA8+(8*9.95) -> 212.25 | AD8: bis 50 Leitungen | AE8: 250
A9: 120 | B9: 979 | C9: 999 | D9: 120 | E9: 5279 | F9: 999 | G9: 10 | H9: 49.9 | I9: 0 | J9: 10 | K9: 199.9 | L9: 0 | S9: 10 | T9: 12 | U9: 32.5 | V9: 82.5 | W9: 132.5 | X9: =PRODUCT(S9,15.75) -> 157.5 | Y9: 25 | AD9: bis 100 Leitungen | AE9: 500
G10: 25 | H10: 124.75 | I10: 0 | J10: 25 | K10: 499.75 | L10: 0 | S10: 12 | T10: 14.4 | U10: =PRODUCT(S10,3) -> 36 | V10: =PRODUCT(S10,8) -> 96 | W10: =PRODUCT(S10,13.25) -> 159 | X10: =PRODUCT(S10,15.5) -> 186 | Y10: 30 | AD10: bis 200 Leitungen | AE10: 1000
S11: 14 | T11: 16.8 | U11: =PRODUCT(S11,3) -> 42 | V11: =PRODUCT(S11,8) -> 112 | W11: =PRODUCT(S11,13.25) -> 185.5 | X11: =PRODUCT(S11,15.5) -> 217 | Y11: 35
A12: HFO NGN Business RV1 Festnetz | D12: HFO NGN Business RV1 Allnet | G12: HFO NGN Connect RV1 Festnetz | J12: HFO NGN Connect RV1 Allnet | S12: 16 | T12: 19.2 | U12: 48 | V12: 128 | W12: 212 | X12: 248 | Y12: 40
S13: 18 | T13: 21.6 | U13: 54 | V13: 144 | W13: 238.5 | X13: 279 | Y13: 45
A14: Leitungen | B14: Preis | C14: Anschluss | D14: Leitungen | E14: Preis | F14: Anschluss | G14: Leitungen | H14: Preis | I14: Anschluss | J14: Leitungen | K14: Preis | L14: Anschluss | S14: 20 | T14: =PRODUCT(S14,1.2) -> 24 | U14: =PRODUCT(S14,3) -> 60 | V14: =PRODUCT(S14,8) -> 160 | W14: =PRODUCT(S14,13.25) -> 265 | X14: =PRODUCT(S14,15.5) -> 310 | Y14: 50
S15: 30 | T15: =PRODUCT(S15,1.2) -> 36 | U15: =PRODUCT(S15,2.75) -> 82.5 | V15: =PRODUCT(S15,13) -> 390 | W15: =PRODUCT(S15,12.75) -> 382.5 | X15: =PRODUCT(S15,15.25) -> 457.5 | Y15: 75
A16: 6 | B16: 96 | C16: 49 | D16: 6 | E16: 185 | F16: 49 | G16: 2 | H16: 10.98 | I16: 0 | J16: 2 | K16: 43.98 | L16: 0
A17: 8 | B17: 119 | C17: 49 | D17: 8 | E17: 229 | F17: 49 | G17: 4 | H17: 21.96 | I17: 0 | J17: 4 | K17: 87.96 | L17: 0
A18: 25 | B18: 279 | C18: 99 | D18: 25 | E18: 609 | F18: 99 | G18: 6 | H18: 32.94 | I18: 0 | J18: 6 | K18: 131.94 | L18: 0
A19: 50 | B19: 519 | C19: 299 | D19: 50 | E19: 1149 | F19: 299 | G19: 8 | H19: 43.92 | I19: 0 | J19: 8 | K19: 175.92 | L19: 0
A20: 120 | B20: 1049 | C20: 999 | D20: 120 | E20: 5379 | F20: 999 | G20: 10 | H20: 54.9 | I20: 0 | J20: 10 | K20: 219.9 | L20: 0
G21: 25 | H21: 137.25 | I21: 0 | J21: 25 | K21: 549.75 | L21: 0
A23: HFO NGN Business RV2 Festnetz | D23: HFO NGN Business RV2 Allnet | G23: HFO NGN Connect RV2 Festnetz | J23: HFO NGN Connect RV2 Allnet | M23: DATENLEITUNG Vodafone | P23: LAUFZEITEN Vodafone | S23: ECOTEL VDSL | Z23: Telekom DSL
A25: Leitungen | B25: Preis | C25: Anschluss | D25: Leitungen | E25: Preis | F25: Anschluss | G25: Leitungen | H25: Preis | I25: Anschluss | J25: Leitungen | K25: Preis | L25: Anschluss | M25: Kein Internet | N25: 0 | P25: 24 Monate | Q25: 99 | S25: Kein Internet | T25: 0 | Z25: ADSL 16 Mbit | AA25: 0
M26: Business Internet 16.000 | N26: 5 | P26: 36 Monate | Q26: 0 | S26: pure VDSL 50 | T26: 39.9 | Z26: VDSL 50 Mbit | AA26: 4.95
A27: 6 | B27: 103 | C27: 49 | D27: 6 | E27: 199 | F27: 49 | G27: 2 | H27: 12.98 | I27: 0 | J27: 2 | K27: 51.98 | L27: 0 | M27: Business Internet 50.000 | N27: 10 | S27: pure VDSL 100 | T27: 44.9 | Z27: VDSL 100 Mbit | AA27: 9.95
A28: 8 | B28: 129 | C28: 49 | D28: 8 | E28: 249 | F28: 49 | G28: 4 | H28: 25.96 | I28: 0 | J28: 4 | K28: 103.96 | L28: 0 | M28: Business Internet 100.000 | N28: 15
A29: 25 | B29: 299 | C29: 99 | D29: 25 | E29: 659 | F29: 99 | G29: 6 | H29: 38.94 | I29: 0 | J29: 6 | K29: 155.94 | L29: 0
A30: 50 | B30: 559 | C30: 299 | D30: 50 | E30: 1219 | F30: 299 | G30: 8 | H30: 51.92 | I30: 0 | J30: 8 | K30: 207.92 | L30: 0 | M30: vorhanden | N30: 0 | P30: keine EU-Flat
A31: 120 | B31: 1119 | C31: 999 | D31: 120 | E31: 5489 | F31: 999 | G31: 10 | I31: 0 | J31: 10 | K31: 259.9 | L31: 0 | M31: SDSL 2 Mbit/s + QoS | N31: =79+24.95 -> 103.95 | P31: EU-Flat Festnetz
G32: 25 | H32: 162.25 | I32: 0 | J32: 25 | K32: 649.75 | L32: 0 | M32: SDSL 4 Mbit/s + QoS | N32: =89+24.95 -> 113.95
A33: Datenleitung HFO | C33: HFO RV | D33: kein | M33: SDSL 6 Mbit/s + QoS | N33: =139+24.95 -> 163.95
D34: RV1 | M34: SDSL 8 Mbit/s + QoS | N34: =149+24.95 -> 173.95
A35: Kein Internet | B35: 0 | D35: RV2 | M35: SDSL 10 Mbit/s + QoS | N35: =179+24.95 -> 203.95
A36: DSLmaxx Business VDSL 100 | B36: 38.99 | M36: SDSL 15 Mbit/s + QoS | N36: =239+24.95 -> 263.95
M37: SDSL 20 Mbit/s + QoS | N37: =349+24.95 -> 373.95
M40: ALA Plus S0 | N40: FALSE
M41: IP ALA | N41: FALSE
M42: IP ALA DGRV | N42: FALSE
A46: HFO NGN Connect
A47: HFO NGN Business
A48: STARFACE Connect
A49: Deutsche Telekom
A50: Vodafone AnlagenAs Plus
A51: Vodafone IP-AnlagenAs
A52: Vodafone IP-AnlagenAs DGRV
A53: peoplefone SIP-Trunk
A54: QSC extended connect
A55: QSC IPfonie extended
A56: Ecotel SIP-Trunk 2.0
